[Event "Cesenatico Open 2019"]
[Site "Cesenatico"]
[Date "2019.09.09"]
[Round "9"]
[White "Marzano, Carlo"]
[Black "Kacani, Kirk"]
[Result "0-1"]
[ECO "E11"]
[WhiteElo "2109"]
[BlackElo "2091"]
[Annotator "ChessBase"]
[PlyCount "130"]
[EventDate "2019.09.01"]
[EventType "swiss"]
[EventCountry "ITA"]
[SourceTitle "playchess.com"]
[Source "ChessBase"]
[SourceQuality "1"]
[TimeControl "40/6000:900"]

1. d4 {[%emt 1:11:00]} Nf6 {[%emt 1:40:00]} 2. c4 {[%emt 0:00:00]} e6 {[%emt 0:00:00]} 3. Nf3 {[%emt 0:00:00]} Bb4+ {[%emt 0:00:00]} 4. Nbd2 {[%emt 0:00:00]} d5 {[%emt 0:00:00]} 5. Qa4+ {[%emt 0:00:00]} Nc6 {[%emt 0:00:00]} 6. a3 {[%emt 0:00:00]} Bxd2+ {[%emt 0:00:00]} 7. Bxd2 {[%emt 0:00:00]} O-O {[%emt 0:00:00]} 8. Bf4 {[%emt 0:00:00]} Qe7 {[%emt 0:00:00]} 9. e3 {[%emt 0:00:00]} Rd8 {[%emt 0:00:00]} 10. Be2 {[%emt 0:00:00]} h6 {[%emt 0:00:00]} 11. h3 {[%emt 0:00:00]} Bd7 {[%emt 0:00:00]} 12. Qc2 {[%emt 0:00:00]} Rac8 {[%emt 0:00:00]} 13. O-O {[%emt 0:00:00]} dxc4 {[%emt 0:00:00]} 14. Qxc4 {[%emt 0:00:00]} Nd5 {[%emt 0:00:00]} 15. Bg3 {[%emt 0:00:00]} Na5 {[%emt 0:00:00]} 16. Qa2 {[%emt 0:00:00]} Ba4 {[%emt 0:00:00]} 17. b4 {[%emt 0:27:42]} Nb3 {[%emt 0:00:00]} 18. Rae1 {[%emt 0:00:17]} Nc3 {[%emt 0:00:00]} 19. Qb2 {[%emt 0:00:00]} Nxe2+ {[%emt 0:00:00]} 20. Qxe2 {[%emt 0:00:00]} a5 {[%emt 0:00:00]} 21. Qc4 {[%emt 0:00:00]} Qd7 {[%emt 0:00:00]} 22. Rb1 {[%emt 0:00:00]} Qd5 {[%emt 0:00:00]} 23. Qxd5 {[%emt 0:00:00]} Rxd5 {[%emt 0:00:00]} 24. Rb2 {[%emt 0:00:00]} axb4 {[%emt 0:00:00]} 25. axb4 {[%emt 0:00:00]} Rb5 {[%emt 0:00:00]} 26. Rfb1 {[%emt 0:00:00]} Rxb4 {[%emt 0:00:00]} 27. Nd2 {[%emt 0:00:00]} Nxd2 {[%emt 0:00:00]} 28. Rxb4 {[%emt 0:00:00]} Nxb1 {[%emt 0:00:00]} 29. Rxa4 {[%emt 0:00:00]} Nc3 {[%emt 0:00:00]} 30. Rb4 {[%emt 0:00:00]} Ne2+ {[%emt 0:00:00]} 31. Kf1 {[%emt 0:00:00]} Nxg3+ {[%emt 0:00:00]} 32. fxg3 {[%emt 0:00:00]} Ra8 {[%emt 0:00:00]} 33. Ke2 {[%emt 0:00:00]} b6 {[%emt 0:00:00]} 34. Kd3 {[%emt 0:00:00]} Kf8 {[%emt 0:00:00]} 35. Kc4 {[%emt 0:00:00]} Ke7 {[%emt 0:00:00]} 36. Rb2 {[%emt 0:00:00]} Ra3 {[%emt 0:00:00]} 37. Re2 {[%emt 0:00:00]} Kd6 {[%emt 0:00:00]} 38. g4 {[%emt 0:00:00]} c6 {[%emt 0:00:00]} 39. Kb4 {[%emt 0:00:00]} Ra1 {[%emt 0:00:00]} 40. Kc4 {[%emt 0:00:00]} b5+ {[%emt 0:00:00]} 41. Kc3 {[%emt 0:12:41]} Ra3+ {[%emt 0:13:23]} 42. Kb2 {[%emt 0:00:52]} Ra4 {[%emt 0:00:00]} 43. Rc2 {[%emt 0:00:00]} Rb4+ {[%emt 0:00:00]} 44. Ka3 {[%emt 0:00:00]} Rb1 {[%emt 0:00:00]} 45. Re2 {[%emt 0:00:00]} Kd5 {[%emt 0:00:00]} 46. Ka2 {[%emt 0:00:00]} Rb4 {[%emt 0:00:00]} 47. Ka3 {[%emt 0:00:00]} Rc4 {[%emt 0:00:00]} 48. Kb3 {[%emt 0:00:00]} Ke4 {[%emt 0:00:00]} 49. Re1 {[%emt 0:00:00]} Ra4 {[%emt 0:00:00]} 50. Rc1 {[%emt 0:00:00]} Kxe3 {[%emt 0:00:00]} 51. Rxc6 {[%emt 0:00:00]} Rxd4 {[%emt 0:00:00]} 52. Rc5 {[%emt 0:00:00]} Kf2 {[%emt 0:00:00]} 53. Rxb5 {[%emt 0:00:00]} Kxg2 {[%emt 0:00:00]} 54. Kc3 {[%emt 0:00:00]} Rf4 {[%emt 0:00:00]} 55. g5 {[%emt 0:00:00]} Kxh3 {[%emt 0:00:00]} 56. g6 {[%emt 0:00:00]} fxg6 {[%emt 0:00:00]} 57. Rb7 {[%emt 0:00:00]} g5 {[%emt 0:00:00]} 58. Rxg7 {[%emt 0:00:00]} Kg4 {[%emt 0:00:00]} 59. Rg6 {[%emt 0:00:00]} h5 {[%emt 0:00:00]} 60. Rxe6 {[%emt 0:00:00]} h4 {[%emt 0:00:00]} 61. Kd2 {[%emt 0:00:00]} Kg3 {[%emt 0:00:00]} 62. Ke1 {[%emt 0:00:00]} g4 {[%emt 0:00:00]} 63. Rh6 {[%emt 0:00:00]} h3 {[%emt 0:00:00]} 64. Ke2 {[%emt 0:00:00]} h2 {[%emt 0:00:00]} 65. Ke3 {[%emt 0:00:00]} Rf8 {[%emt 0:00:00]} 0-1

[Event "Cesenatico Open 2019"]
[Site "Cesenatico"]
[Date "2019.09.09"]
[Round "9"]
[White "Bonassi, Tommaso"]
[Black "Loiacono, Antonio"]
[Result "0-1"]
[ECO "B10"]
[WhiteElo "2101"]
[BlackElo "2282"]
[Annotator "ChessBase"]
[PlyCount "62"]
[EventDate "2019.09.01"]
[EventType "swiss"]
[EventCountry "ITA"]
[SourceTitle "playchess.com"]
[Source "ChessBase"]
[SourceQuality "1"]
[TimeControl "40/6000:900"]

1. e4 {[%emt 0:02:00]} c6 {[%emt 0:00:00]} 2. d3 {[%emt 0:00:00]} d5 {[%emt 0:02:00]} 3. Nd2 {[%emt 0:00:00]} g6 {[%emt 0:00:00]} 4. Ngf3 {[%emt 0:00:00]} Bg7 {[%emt 0:00:00]} 5. g3 {[%emt 0:00:00]} b6 {[%emt 0:04:00]} 6. Qe2 dxe4 {[%emt 0:00:00]} 7. dxe4 {[%emt 0:15:00]} Ba6 {[%emt 0:03:00]} 8. Nc4 Qc8 {[%emt 0:02:00]} 9. Bg2 {[%emt 0:00:00]} Qe6 {[%emt 0:01:00]} 10. Nfd2 {[%emt 0:00:00]} Nh6 {[%emt 0:03:00]} 11. h4 {[%emt 0:03:00]} O-O 12. Bh3 {[%emt 0:23:00]} f5 {[%emt 0:07:00]} 13. e5 c5 {[%emt 0:00:00]} 14. f4 {[%emt 0:08:00]} Nc6 {[%emt 0:06:00]} 15. c3 {[%emt 0:00:00]} Rad8 {[%emt 0:04:00]} 16. b3 {[%emt 0:00:00]} Rd7 {[%emt 0:03:00]} 17. Bg2 {[%emt 0:01:00]} Na5 {[%emt 0:03:00]} 18. Nf3 {[%emt 0:02:00]} Nf7 19. h5 {[%emt 0:02:00]} Nxc4 {[%emt 0:09:00]} 20. bxc4 {[%emt 0:01:00]} Bxc4 21. Qf2 {[%emt 0:02:00]} Rfd8 {[%emt 0:06:00]} 22. Be3 {[%emt 0:05:00]} Bxe5 {[%emt 0:11:00]} 23. fxe5 {[%emt 0:00:00]} Nxe5 {[%emt 0:00:00]} 24. Nxe5 {[%emt 0:00:00]} Qxe5 {[%emt 0:00:00]} 25. Qf4 {[%emt 0:00:00]} Qxc3+ 26. Kf2 {[%emt 0:00:00]} Qb2+ {[%emt 0:06:00]} 27. Kg1 {[%emt 0:05:00]} Qxa1+ {[%emt 0:00:00]} 28. Kh2 {[%emt 0:00:00]} Qxa2 {[%emt 0:00:00]} 29. Qe5 {[%emt 0:00:00]} Qe2 {[%emt 0:01:00]} 30. h6 {[%emt 0:00:00]} Qh5+ {[%emt 0:00:00]} 31. Kg1 {[%emt 0:00:00]} Rd1+ {[%emt 0:00:00]} 0-1